bitfinex/quotes_BTCUSD_20250902
["timestamp","ask_amount","ask_price","bid_price","bid_amount"]
[1756834938707,0.025281,111090.0,111080.0,0.51170522]
[1756834940305,0.025281,111090.0,111080.0,0.35638522]
[1756834940548,0.025281,111090.0,111080.0,0.51466522]
[1756834941011,0.2053152,111090.0,111080.0,0.36238522]
[1756834941256,0.2053152,111090.0,111080.0,0.51766522]
[1756834941702,0.2053152,111090.0,111080.0,0.52676012]
[1756834942050,0.2053152,111090.0,111080.0,0.37148012]
[1756834942285,0.2053152,111090.0,111080.0,0.19142971]
[1756834942286,0.2077752,111090.0,111080.0,0.19142971]
[1756834942486,0.2077752,111090.0,111080.0,0.34670971]
[1756834942692,0.2077752,111090.0,111080.0,0.52676012]
[1756834943711,0.87181,111090.0,111080.0,0.26438367]
[1756834943923,0.87181,111090.0,111080.0,0.44443408]
[1756834944134,0.2077752,111090.0,111080.0,0.44443408]
[1756834945309,0.2077752,111090.0,111080.0,0.10914367]
[1756834945519,0.87181,111090.0,111080.0,0.04566367]
[1756834945721,0.87181,111090.0,111080.0,0.16124]
[1756834946496,0.87181,111090.0,111080.0,0.006]
[1756834946755,0.87181,111090.0,111080.0,0.15824]
[1756834947388,0.87181,111090.0,111080.0,0.003]
[1756834947833,0.18006662,111070.0,111060.0,0.37282596]
[1756834948016,0.87324754,111070.0,111060.0,0.25886596]
[1756834948270,0.20500662,111070.0,111060.0,0.43894879]
[1756834948477,0.20500662,111070.0,111060.0,0.25886596]
[1756834949303,0.20500662,111070.0,111060.0,0.25986596]
[1756834950326,0.20500662,111070.0,111060.0,0.26186596]
[1756834951602,0.63134246,111070.0,111060.0,0.44194879]
[1756834951829,0.20500662,111070.0,111060.0,0.53893478]
[1756834951963,0.18204662,111070.0,111060.0,0.53893478]
[1756834953477,0.18204662,111070.0,111060.0,0.53386478]
[1756834953684,0.63379246,111070.0,111060.0,0.35374195]
[1756834954033,0.63379246,111070.0,111060.0,0.26182596]
[1756834954275,0.63379246,111070.0,111060.0,0.1582]
[1756834954514,0.63379246,111070.0,111060.0,0.003]
[1756834954728,0.63379246,111070.0,111060.0,0.1582]
[1756834954906,0.63379246,111070.0,111060.0,0.003]
[1756834955297,0.63379246,111070.0,111060.0,0.1582]
[1756834956584,0.63379246,111070.0,111060.0,0.003]
[1756834956766,0.63379246,111070.0,111060.0,0.1582]
[1756834956969,0.63379246,111070.0,111060.0,0.003]
[1756834957110,0.63379246,111070.0,111060.0,0.1582]
[1756834957742,0.63134246,111070.0,111060.0,0.1582]
[1756834958185,0.20500662,111070.0,111060.0,0.16323]
[1756834958394,0.18204662,111070.0,111060.0,0.34331283]
[1756834958603,0.18006509,111080.0,111060.0,0.43522882]
[1756834958805,0.18006662,111070.0,111060.0,0.43522882]
[1756834959407,0.18006662,111070.0,111060.0,0.43222882]
[1756834959611,0.18006662,111070.0,111060.0,0.43322882]
[1756834960018,0.60640093,111080.0,111060.0,0.43322882]
[1756834960215,0.18006662,111070.0,111060.0,0.43222882]
[1756834960480,0.18006662,111070.0,111060.0,0.43422882]
[1756834961459,0.61014858,111070.0,111060.0,0.001]
[1756834961651,0.60839246,111070.0,111060.0,0.15616]
[1756834962090,0.60839246,111070.0,111060.0,0.21964]
[1756834962823,0.60839246,111070.0,111060.0,0.06448]
[1756834963036,0.63342246,111070.0,111060.0,0.21964]
[1756834963228,0.20708662,111070.0,111060.0,0.21964]
[1756834963438,0.63342246,111070.0,111060.0,0.21864]
[1756834963604,0.63097246,111070.0,111060.0,0.21864]
[1756834963805,0.63097246,111070.0,111060.0,0.21964]
[1756834964003,0.20463662,111070.0,111060.0,0.21964]
[1756834964203,0.63342246,111070.0,111060.0,0.21964]
[1756834965055,0.63342246,111070.0,111060.0,0.15612]
[1756834965478,0.20708662,111070.0,111060.0,0.15612]
[1756834965629,0.63342246,111070.0,111060.0,0.15512]
[1756834966031,0.63342246,111070.0,111060.0,0.15612]
[1756834966445,0.63342246,111070.0,111060.0,0.15512]
[1756834966661,0.20463662,111070.0,111060.0,0.15612]
[1756834966868,0.63097246,111070.0,111060.0,0.15612]
[1756834967245,0.63097246,111070.0,111060.0,0.15512]
[1756834967459,0.18006662,111070.0,111060.0,0.16015]
[1756834967671,0.18006662,111070.0,111060.0,0.16115]
[1756834967885,0.18182274,111070.0,111060.0,0.16115]
[1756834968127,0.18006662,111070.0,111060.0,0.16115]
[1756834968519,0.61013858,111070.0,111060.0,0.001]
[1756834968725,0.61013858,111070.0,111060.0,0.15612]
[1756834968726,0.60838246,111070.0,111060.0,0.15612]
[1756834970170,0.60838246,111070.0,111060.0,0.15816]
[1756834970384,0.18006662,111070.0,111060.0,0.34348386]
[1756834970593,0.18006662,111070.0,111060.0,0.34123283]
[1756834971010,0.18006509,111080.0,111060.0,0.43314882]
[1756834971215,0.18006509,111080.0,111070.0,0.18530745]
[1756834971421,0.18006509,111080.0,111070.0,0.18305662]
[1756834971631,0.18006509,111080.0,111070.0,0.18509662]
[1756834972448,0.18106509,111080.0,111070.0,0.24857662]
[1756834972659,0.18106509,111080.0,111070.0,0.06851]
[1756834972873,0.18304509,111080.0,111070.0,0.07076083]
[1756834973288,0.60938093,111080.0,111070.0,0.07076083]
[1756834974078,0.60838093,111080.0,111070.0,0.06573083]
[1756834974284,0.60838093,111080.0,111070.0,0.21856]
[1756834974490,0.63342093,111080.0,111070.0,0.21856]
[1756834974706,0.18008283,111060.0,111050.0,1.39085755]
[1756834974910,0.18008283,111060.0,111050.0,1.63989354]
[1756834975563,0.6064171,111070.0,111050.0,1.63989354]
[1756834975774,0.21164761,111080.0,111060.0,0.18532386]
[1756834975988,0.61540345,111080.0,111070.0,0.16011]
[1756834976200,0.18906761,111080.0,111070.0,0.34017662]
[1756834976833,0.18906761,111080.0,111070.0,0.16011]
[1756834977015,0.18906761,111080.0,111070.0,0.16236083]
[1756834977497,0.61738345,111080.0,111070.0,0.15937083]
[1756834977719,0.18006662,111070.0,111060.0,0.09191599]
[1756834977926,0.18008283,111060.0,111050.0,1.39085728]
[1756834978128,0.18006662,111070.0,111050.0,1.48481327]
[1756834978350,0.18008283,111060.0,111050.0,1.48382327]
[1756834981401,0.18204662,111070.0,111060.0,0.16232103]
[1756834981629,0.18204662,111070.0,111060.0,0.16432103]
[1756834981837,0.18204662,111070.0,111060.0,0.16207]
[1756834982022,0.18204662,111070.0,111060.0,0.16307]
[1756834982240,0.60838246,111070.0,111060.0,0.15804]
[1756834982874,0.61084246,111070.0,111060.0,0.15804]
[1756834983329,0.63342246,111070.0,111060.0,0.003]
[1756834983539,0.63342246,111070.0,111060.0,0.15804]
[1756834984168,0.20462662,111070.0,111060.0,0.15804]
[1756834985123,0.20708662,111070.0,111060.0,0.15804]
[1756834985346,0.63342246,111070.0,111060.0,0.003]
[1756834985560,0.66060282,111070.0,111060.0,0.15804]
[1756834986004,0.63342246,111070.0,111060.0,0.15804]
[1756834986458,0.63342246,111070.0,111060.0,0.15604]
[1756834986661,0.63442246,111070.0,111060.0,0.15604]
[1756834987085,0.20562662,111070.0,111060.0,0.15604]
[1756834987293,0.63196246,111070.0,111060.0,0.15604]
[1756834987499,0.63196246,111070.0,111060.0,0.15504]
[1756834987704,0.18008283,111060.0,111050.0,0.10408337]
[1756834987843,0.18183895,111060.0,111050.0,0.25908337]
[1756834988056,0.18183895,111060.0,111050.0,0.22351]
[1756834988263,0.18380895,111060.0,111050.0,0.22052]
[1756834988484,0.60838867,111060.0,111050.0,0.21848]
[1756834988688,0.61084867,111060.0,111050.0,0.21848]
[1756834988898,0.60838867,111060.0,111050.0,0.21848]
[1756834989092,0.60838867,111060.0,111050.0,0.21948]
[1756834989536,0.61084867,111060.0,111050.0,0.21948]
[1756834989718,0.20534283,111060.0,111050.0,0.21948]
[1756834990320,0.63167867,111060.0,111050.0,0.21948]
[1756834990954,0.20534283,111060.0,111050.0,0.21948]
[1756834993363,0.63167867,111060.0,111050.0,0.21948]
[1756834994144,0.20534283,111060.0,111050.0,0.21948]
[1756834994350,0.63167867,111060.0,111050.0,0.21948]
[1756834994777,0.64331459,111060.0,111050.0,0.156]
[1756834994980,0.64085459,111060.0,111050.0,0.156]
[1756834995188,0.64085459,111060.0,111050.0,0.001]
[1756834995391,1.07523058,111060.0,111050.0,0.001]
[1756834995613,1.12184068,111060.0,111050.0,0.001]
[1756834995819,1.17640884,111060.0,111050.0,0.001]
[1756834996285,1.17640884,111060.0,111040.0,0.155]
[1756834996286,0.18009905,111050.0,111040.0,0.155]
[1756834996484,0.18014772,111020.0,111010.0,0.40928631]
[1756834996700,0.18190384,111020.0,111010.0,0.6581723]
[1756834996920,0.18014772,111020.0,111010.0,0.72309796]
[1756834997124,0.18014772,111020.0,111010.0,0.87809796]
[1756834998049,0.18014772,111020.0,111010.0,0.62438771]
[1756834998258,0.18014772,111020.0,111010.0,0.80555165]
[1756834998476,0.18014772,111020.0,111010.0,0.80755165]
[1756834998656,0.18014772,111020.0,111010.0,0.76778993]
[1756834999060,0.18190384,111020.0,111010.0,0.76778993]
[1756834999667,0.18014772,111020.0,111010.0,0.76778993]
[1756835000491,0.18014772,111020.0,111010.0,0.76578993]
[1756835000692,0.18014772,111020.0,111010.0,0.76778993]
[1756835001066,0.18013149,111030.0,111010.0,0.76778993]
[1756835001292,0.18188761,111030.0,111020.0,0.00306]
[1756835001479,0.18188761,111030.0,111020.0,0.00503]
[1756835001679,0.18014772,111020.0,111010.0,0.33468]
[1756835001879,0.18014772,111020.0,111010.0,0.33871]
[1756835002085,0.18014772,111020.0,111010.0,0.49467]
[1756835002292,0.18014772,111020.0,111010.0,0.49367]
[1756835003005,0.18190384,111020.0,111010.0,0.49367]
[1756835003204,0.18387384,111020.0,111010.0,0.22451]
[1756835003413,0.18014772,111020.0,111010.0,0.22351]
[1756835003619,0.18190384,111020.0,111010.0,0.22551]
[1756835004242,0.18190384,111020.0,111010.0,0.22651]
[1756835004906,0.18190384,111020.0,111010.0,0.07151]
[1756835005117,0.18387384,111020.0,111010.0,0.22341]
[1756835005310,0.18014772,111020.0,111010.0,0.22647]
[1756835005521,0.18190384,111020.0,111010.0,0.22647]
[1756835007061,0.18190384,111020.0,111010.0,0.40663394]
[1756835007303,0.18014772,111020.0,111010.0,0.40663394]
[1756835007927,0.18013149,111030.0,111010.0,0.92488577]
[1756835008063,0.18188761,111030.0,111020.0,0.00306]
[1756835008258,0.18188761,111030.0,111020.0,0.18517772]
[1756835008494,0.189104,111050.0,111030.0,0.18013149]
[1756835008680,0.18011527,111040.0,111030.0,0.60871897]
[1756835008884,0.189104,111050.0,111030.0,0.76339733]
[1756835009260,0.189104,111050.0,111030.0,0.33706149]
[1756835009433,0.189104,111050.0,111040.0,0.00306]
[1756835009641,0.189104,111050.0,111040.0,0.00503]
[1756835010845,0.190104,111050.0,111040.0,0.00503]
[1756835011072,0.192074,111050.0,111040.0,0.15999]
[1756835011309,0.190104,111050.0,111040.0,0.15999]
[1756835011803,0.190104,111050.0,111040.0,0.34010527]
[1756835012010,0.18109905,111050.0,111040.0,0.34010527]
[1756835012434,0.18109905,111050.0,111040.0,0.40358527]
[1756835012644,0.18285517,111050.0,111040.0,0.40358527]
[1756835013071,0.18285517,111050.0,111040.0,0.22347]
[1756835013264,0.18285517,111050.0,111040.0,0.40358527]
[1756835014195,0.18585517,111050.0,111040.0,0.40358527]
[1756835014403,0.18409905,111050.0,111040.0,0.24862527]
[1756835014591,0.18409905,111050.0,111040.0,0.40354527]
[1756835014971,0.001,111050.0,111040.0,1.15921243]
[1756835015114,0.004,111050.0,111040.0,1.15921243]
[1756835015553,0.18008283,111060.0,111050.0,0.18009905]
[1756835015752,0.18022375,111060.0,111050.0,0.18512905]
[1756835016415,0.18022375,111060.0,111050.0,0.34004905]
[1756835016950,0.18022375,111060.0,111050.0,0.34916594]
[1756835017404,0.18022375,111060.0,111050.0,0.19424594]
[1756835017581,0.18122375,111060.0,111050.0,0.34916594]
[1756835017816,0.00114092,111060.0,111050.0,0.34916594]
[1756835017967,0.18122375,111060.0,111050.0,0.34916594]
[1756835019189,0.18122375,111060.0,111050.0,0.19424594]
[1756835019402,0.18122375,111060.0,111050.0,0.15991]
[1756835019809,0.18122375,111060.0,111050.0,0.34000905]
[1756835020837,0.18122375,111060.0,111050.0,0.60920905]
[1756835021016,0.00114092,111060.0,111050.0,0.70112504]
[1756835021239,0.00114092,111060.0,111050.0,1.38581503]
[1756835021443,0.18122375,111060.0,111050.0,0.56718386]
[1756835021652,0.18122375,111060.0,111050.0,0.72206386]
[1756835022461,0.18122375,111060.0,111050.0,0.54196481]
[1756835022667,0.18122375,111060.0,111050.0,0.36614599]
[1756835022875,0.18320375,111060.0,111050.0,0.27423]
[1756835023092,0.18320375,111060.0,111050.0,0.42408]
[1756835023473,0.18320375,111060.0,111050.0,0.2692]
[1756835023674,0.18320375,111060.0,111050.0,0.42408]
[1756835024535,0.84695492,111060.0,111050.0,0.2692]
[1756835024728,0.18320375,111060.0,111050.0,0.42408]
[1756835025395,0.18320375,111060.0,111050.0,0.4261]
[1756835025777,0.18320375,111060.0,111050.0,0.42408]
[1756835026824,0.18320375,111060.0,111040.0,0.25569311]
[1756835026825,0.18009905,111050.0,111040.0,0.67578]
[1756835027023,0.18185517,111050.0,111040.0,0.92455599]
[1756835027269,0.18185517,111050.0,111040.0,0.76971599]
[1756835027476,0.84758634,111050.0,111040.0,0.33268]
[1756835027682,0.84583022,111050.0,111040.0,0.06348]
[1756835028123,0.87152022,111050.0,111040.0,0.001]
[1756835028364,0.87152022,111050.0,111040.0,0.15584]
[1756835028563,0.20776905,111050.0,111040.0,0.15584]
[1756835028784,0.87152022,111050.0,111040.0,0.15584]
[1756835028985,0.86906022,111050.0,111040.0,0.15584]
[1756835030443,0.86906022,111050.0,111040.0,0.001]
[1756835030626,0.86906022,111050.0,111040.0,0.15584]
[1756835031257,0.87152022,111050.0,111040.0,0.1558]
[1756835031634,0.86906022,111050.0,111040.0,0.1558]
[1756835032016,0.20530905,111050.0,111040.0,0.15782]
[1756835032447,0.20530905,111050.0,111040.0,0.1558]
[1756835033281,0.86906022,111050.0,111040.0,0.1558]
[1756835035245,0.86906022,111050.0,111040.0,0.16092]
[1756835035493,0.18009905,111050.0,111040.0,0.16092]
[1756835035713,0.18185517,111050.0,111040.0,0.16092]
[1756835040414,0.18022375,111060.0,111040.0,0.34328671]
[1756835040642,0.18197987,111060.0,111050.0,0.0031]
[1756835040878,0.00189704,111060.0,111050.0,0.34061504]
[1756835041099,0.18022375,111060.0,111050.0,0.34061504]
[1756835042211,0.18122375,111060.0,111050.0,0.34061504]
[1756835042874,0.18122375,111060.0,111050.0,0.31527599]
[1756835043091,0.18122375,111060.0,111050.0,0.20169135]
[1756835043304,0.18320375,111060.0,111050.0,0.26143536]
[1756835043519,0.18220375,111060.0,111050.0,0.26143536]
[1756835043731,0.84695492,111060.0,111050.0,0.06348]
[1756835043971,0.84695492,111060.0,111050.0,0.21824]
[1756835044183,0.18022375,111060.0,111050.0,0.22336]
[1756835044398,0.18197987,111060.0,111050.0,0.22336]
[1756835044614,0.18197987,111060.0,111050.0,0.22332]
[1756835044793,0.18197987,111060.0,111050.0,0.22432]
[1756835045374,0.18197987,111060.0,111050.0,0.22532]
[1756835045990,0.18197987,111060.0,111050.0,0.0706]
[1756835046192,0.85017104,111060.0,111050.0,0.002]
[1756835046393,0.87164492,111060.0,111050.0,0.15672]
[1756835046697,0.87164492,111060.0,111050.0,0.15572]
[1756835047112,0.87164492,111060.0,111030.0,0.16719816]
[1756835047317,0.18011527,111040.0,111030.0,0.16719816]
[1756835047520,0.18187139,111040.0,111030.0,0.29484631]
[1756835047742,0.18187139,111040.0,111030.0,0.29686631]
[1756835047912,0.18187139,111040.0,111030.0,0.22332]
[1756835048496,0.18187139,111040.0,111030.0,0.22532]
[1756835049059,0.18187139,111040.0,111030.0,0.40545149]
[1756835049642,0.18011527,111040.0,111030.0,0.40545149]
[1756835050020,0.18011527,111040.0,111030.0,0.40645149]
[1756835050441,0.18011367,111050.0,111040.0,0.18011527]
[1756835050644,0.18011367,111050.0,111040.0,0.00729144]
[1756835050645,0.18186979,111050.0,111040.0,0.00729144]
[1756835051084,0.18186979,111050.0,111040.0,0.00504]
[1756835051312,0.18011527,111040.0,111030.0,0.60780743]
[1756835051527,0.18011527,111040.0,111030.0,0.76444748]
[1756835053314,0.18385139,111040.0,111030.0,0.52047401]
[1756835053531,0.18011527,111040.0,111030.0,0.52247401]
[1756835053742,0.18187139,111040.0,111030.0,0.4954]
[1756835053963,0.18187139,111040.0,111030.0,0.67553149]
[1756835054801,0.18187139,111040.0,111030.0,0.4954]
[1756835054957,0.18187139,111040.0,111030.0,0.67553149]
[1756835055593,0.18187139,111040.0,111030.0,0.4954]
[1756835056208,0.18187139,111040.0,111030.0,0.67553149]
[1756835056574,0.18187139,111040.0,111030.0,0.40633149]
[1756835057940,0.18011367,111050.0,111030.0,0.40633149]
[1756835058152,0.18011527,111040.0,111030.0,0.40325149]
[1756835058366,0.18011527,111040.0,111030.0,0.22312]
[1756835058573,0.18011527,111040.0,111030.0,0.40325149]
[1756835058784,0.18011527,111040.0,111030.0,0.40633149]
[1756835058918,0.18187139,111040.0,111030.0,0.40633149]
[1756835059386,0.18187139,111040.0,111030.0,0.40433149]
[1756835059653,0.18187139,111040.0,111030.0,0.40533149]
[1756835059851,0.18011527,111040.0,111030.0,0.40533149]
[1756835060092,0.18011367,111050.0,111040.0,0.18011527]
[1756835060299,0.18011367,111050.0,111040.0,0.18207527]
[1756835060509,0.18011367,111050.0,111040.0,0.18515527]
[1756835061226,0.18922789,111060.0,111040.0,0.27707126]
[1756835061435,0.18009905,111050.0,111040.0,0.27499126]
[1756835061559,0.18009905,111050.0,111040.0,0.42963126]
[1756835061756,0.18185517,111050.0,111040.0,0.27499126]
[1756835061970,0.18185517,111050.0,111040.0,0.43271126]
[1756835062412,0.18185517,111050.0,111040.0,0.70191126]
[1756835063066,0.18185517,111050.0,111040.0,0.70091126]
[1756835063271,0.18383517,111050.0,111040.0,0.52079599]
[1756835063474,0.18207905,111050.0,111040.0,0.52079599]
[1756835063681,0.18009905,111050.0,111040.0,0.52079599]
[1756835063861,0.18185517,111050.0,111040.0,0.52075599]
[1756835064069,0.18185517,111050.0,111040.0,0.70187126]
[1756835064607,0.18922789,111060.0,111040.0,0.70187126]
[1756835064824,0.18922789,111060.0,111050.0,0.18543028]
[1756835065004,0.18922789,111060.0,111050.0,0.18317905]
[1756835065240,0.18922789,111060.0,111050.0,0.22510552]
[1756835065871,0.18022375,111060.0,111050.0,0.22510552]
[1756835066285,0.18122375,111060.0,111050.0,0.22510552]
[1756835067339,0.00114092,111060.0,111050.0,0.33796033]
[1756835067547,0.00014092,111060.0,111050.0,0.33796033]
[1756835067872,0.00014092,111060.0,111050.0,1.0027115]
[1756835068056,0.00014092,111060.0,111050.0,1.6139115]
[1756835068527,0.00014092,111060.0,111050.0,2.0139115]
[1756835069419,0.00014092,111060.0,111050.0,1.50476033]
[1756835070431,0.00014092,111060.0,111050.0,2.0139115]
[1756835070649,0.00014092,111060.0,111050.0,2.1684715]
[1756835071457,0.00014092,111060.0,111050.0,2.0139115]
[1756835071667,0.00014092,111060.0,111050.0,1.50472033]
[1756835071975,0.00014092,111060.0,111050.0,2.1684715]
[1756835072201,0.00014092,111060.0,111050.0,2.19553675]
[1756835072620,0.00014092,111060.0,111050.0,2.04097675]
[1756835072813,0.00014092,111060.0,111050.0,2.19553675]
[1756835073237,0.00014092,111060.0,111050.0,2.04097675]
[1756835073436,0.00014092,111060.0,111050.0,2.19553675]
[1756835073622,0.00014092,111060.0,111050.0,1.95798141]
[1756835074425,0.00014092,111060.0,111050.0,1.37722558]
[1756835074606,0.00014092,111060.0,111050.0,1.95798141]
[1756835075586,0.00014092,111060.0,111050.0,1.94095187]
[1756835076472,0.00014092,111060.0,111050.0,1.94091187]
[1756835076863,0.00014092,111060.0,111050.0,1.78639187]
[1756835077003,0.00014092,111060.0,111050.0,1.94091187]
[1756835078244,0.00014092,111060.0,111050.0,1.78639187]
[1756835078413,0.00014092,111060.0,111050.0,1.94091187]
[1756835079485,0.00014092,111060.0,111050.0,1.94087187]
[1756835080270,0.00014092,111060.0,111050.0,2.35003816]
[1756835081146,0.00014092,111060.0,111050.0,1.73006558]
[1756835081360,0.00014092,111060.0,111050.0,2.54839816]
[1756835083857,0.00014092,111060.0,111050.0,1.57558558]
[1756835084078,0.00014092,111060.0,111050.0,1.73006558]
[1756835084300,0.00014092,111060.0,111050.0,2.54839816]
[1756835086755,0.00014092,111060.0,111050.0,1.73006558]
[1756835086970,0.00014092,111060.0,111050.0,2.54835816]
[1756835088331,0.00014092,111060.0,111050.0,1.98475187]
[1756835088747,0.00210092,111060.0,111050.0,2.13919187]
[1756835088959,0.02848092,111060.0,111050.0,0.36030771]
[1756835089166,0.61773004,111060.0,111050.0,0.69484676]
[1756835089370,0.61773004,111060.0,111050.0,0.71578558]
[1756835089604,0.61527004,111060.0,111050.0,0.71578558]
[1756835089789,0.20610375,111060.0,111050.0,1.05578558]
[1756835090384,0.02602092,111060.0,111050.0,1.46495187]
[1756835090894,0.20610375,111060.0,111050.0,1.05578558]
[1756835091077,0.20610375,111060.0,111050.0,1.46495187]
[1756835091697,0.61527004,111060.0,111050.0,1.05578558]
[1756835091860,1.02689633,111060.0,111050.0,0.36030771]
[1756835092061,1.02689633,111060.0,111050.0,0.19736647]
[1756835092760,1.02689633,111060.0,111050.0,0.1574]
[1756835094120,0.20856375,111060.0,111050.0,0.1574]
[1756835094325,0.61773004,111060.0,111050.0,0.1574]
[1756835094535,0.61773004,111060.0,111050.0,0.33975028]
[1756835094536,0.61527004,111060.0,111050.0,0.33975028]
[1756835094711,0.20610375,111060.0,111050.0,0.33951905]
[1756835094934,0.20610375,111060.0,111050.0,0.19877819]
[1756835095137,0.20610375,111060.0,111050.0,0.04437819]
[1756835095138,0.61773004,111060.0,111050.0,0.04437819]
[1756835095365,0.61773004,111060.0,111050.0,0.19877819]
[1756835095977,1.02689633,111060.0,111050.0,0.04437819]
[1756835096185,1.02689633,111060.0,111050.0,0.19877819]
[1756835097055,1.02689633,111060.0,111050.0,0.19777819]
[1756835097482,1.02789633,111060.0,111050.0,0.002]
[1756835097703,1.02789633,111060.0,111050.0,0.1564]
[1756835098136,1.05497018,111060.0,111050.0,0.1544]
[1756835098581,1.02789633,111060.0,111050.0,0.1544]
[1756835100377,0.20710375,111060.0,111050.0,0.15642]
[1756835100593,0.61627004,111060.0,111050.0,0.1544]
[1756835101435,1.02789633,111060.0,111050.0,0.1544]
[1756835101988,0.20710375,111060.0,111050.0,0.1544]
[1756835102212,0.61627004,111060.0,111050.0,0.00202]
[1756835102409,0.59039004,111060.0,111050.0,0.15957]
[1756835102606,0.18122375,111060.0,111050.0,0.57098752]
[1756835102962,0.18122375,111060.0,111050.0,0.74883534]
[1756835103160,0.18122375,111060.0,111050.0,0.15957]
[1756835103161,0.18022375,111060.0,111050.0,0.15957]
[1756835103378,0.18197987,111060.0,111050.0,0.16282123]
[1756835103799,0.17697987,111060.0,111050.0,0.16282123]
[1756835104023,0.17697987,111060.0,111050.0,0.40640028]
[1756835104024,0.17522375,111060.0,111050.0,0.40640028]
[1756835104243,0.17522375,111060.0,111050.0,0.40414905]
[1756835104732,0.18006867,111070.0,111060.0,0.20102165]
[1756835104939,0.59821949,111080.0,111060.0,0.97332393]
[1756835105150,0.18006662,111070.0,111060.0,0.97651393]
[1756835105363,0.18006662,111070.0,111060.0,0.74877343]
[1756835106241,0.1890532,111080.0,111060.0,1.15793972]
[1756835106450,0.1890532,111080.0,111060.0,1.15474972]
[1756835106451,0.59821949,111080.0,111060.0,1.15474972]
[1756835106660,0.1890532,111080.0,111070.0,0.18325662]
[1756835106896,0.1890532,111080.0,111070.0,0.18527662]
[1756835107118,0.1920532,111080.0,111070.0,0.18527662]
[1756835107333,0.1920532,111080.0,111070.0,0.59444291]
[1756835107549,0.18005068,111080.0,111070.0,0.6863589]
[1756835107761,0.18005041,111080.0,111070.0,0.9555589]
[1756835108178,0.18105041,111080.0,111070.0,0.9555589]
[1756835108612,0.001,111080.0,111070.0,0.9555589]
[1756835108818,0.001,111080.0,111070.0,1.01741419]
[1756835109243,0.001,111080.0,111070.0,1.17173419]
[1756835110206,0.001,111080.0,111070.0,0.90253419]
[1756835110627,0.18105041,111080.0,111070.0,0.34828962]
[1756835110847,0.18310041,111080.0,111070.0,0.31330128]
[1756835111268,0.18310041,111080.0,111070.0,0.4933679]
[1756835111478,0.18105041,111080.0,111070.0,0.4933679]
[1756835111696,0.18105041,111080.0,111070.0,0.56814757]
[1756835111907,0.5922667,111080.0,111070.0,0.15898128]
[1756835112112,0.5922667,111080.0,111070.0,0.28715246]
[1756835112331,0.5922667,111080.0,111070.0,0.28815246]
[1756835112540,0.5912667,111080.0,111070.0,0.28815246]
[1756835112741,0.5912667,111080.0,111070.0,0.29221246]
[1756835113151,0.5912667,111080.0,111070.0,0.32027604]
[1756835113331,0.18210041,111080.0,111070.0,0.32027604]
[1756835113491,0.18210041,111080.0,111070.0,0.31927604]
[1756835114933,0.18005041,111080.0,111070.0,0.49934266]
[1756835115166,0.18210041,111080.0,111070.0,0.31927604]
[1756835115575,0.18210041,111080.0,111070.0,0.32027604]
[1756835115753,0.18210041,111080.0,111070.0,0.43515604]
[1756835115962,0.18210041,111080.0,111070.0,0.58943604]
[1756835116476,0.18005041,111080.0,111070.0,0.58943604]
[1756835117236,0.59541282,111080.0,111070.0,0.49246005]
[1756835117453,1.02609299,111080.0,111070.0,0.46539647]
[1756835118923,0.20537041,111080.0,111070.0,0.47045647]
[1756835119125,0.18005041,111080.0,111070.0,0.47045647]
[1756835119326,0.18005041,111080.0,111070.0,1.05968938]
[1756835119555,0.18005041,111080.0,111070.0,1.15160537]
[1756835119681,0.18005041,111080.0,111070.0,0.74243908]
[1756835119899,0.18203041,111080.0,111070.0,0.55727246]
[1756835120098,0.18005041,111080.0,111070.0,0.56233246]
[1756835120353,0.18005041,111080.0,111070.0,0.74239908]
[1756835120580,0.18005041,111080.0,111070.0,1.15156537]
[1756835121021,0.18005041,111080.0,111070.0,0.74239908]
[1756835122380,0.18005041,111080.0,111070.0,1.15156537]
[1756835123049,0.18005041,111080.0,111070.0,0.56233246]
[1756835123264,0.5911967,111080.0,111070.0,0.55727246]
[1756835123958,0.5911967,111080.0,111070.0,0.56233246]
[1756835124173,0.5911967,111080.0,111070.0,0.40303246]
[1756835124390,0.5911967,111080.0,111070.0,0.55727246]
[1756835124828,1.00036299,111080.0,111070.0,0.31111647]
[1756835125092,1.00282299,111080.0,111070.0,0.31111647]
[1756835125316,1.02609299,111080.0,111070.0,0.46535647]
[1756835127186,1.02609299,111080.0,111070.0,0.31111647]
[1756835127367,1.02609299,111080.0,111070.0,0.46535647]
[1756835127509,1.02363299,111080.0,111070.0,0.46535647]
[1756835127718,0.6144667,111080.0,111070.0,0.19826647]
[1756835127919,0.6144667,111080.0,111070.0,0.20121647]
[1756835128155,0.5911967,111080.0,111070.0,0.20121647]
[1756835128314,0.18005041,111080.0,111070.0,0.38128309]
[1756835128687,0.18005041,111080.0,111070.0,0.20121647]
[1756835128954,0.18005041,111080.0,111070.0,0.61038276]
[1756835129359,0.18005041,111080.0,111070.0,0.88236537]
[1756835129539,0.18180653,111080.0,111070.0,0.29313246]
[1756835129885,0.18180653,111080.0,111070.0,0.88236537]
[1756835130295,0.18180653,111080.0,111070.0,0.47319908]
[1756835130567,0.18180653,111080.0,111070.0,0.88236537]
[1756835131110,0.18180653,111080.0,111070.0,0.29313246]
[1756835131357,0.59097282,111080.0,111070.0,0.29313246]
[1756835131532,0.5892167,111080.0,111070.0,0.29313246]
[1756835132087,0.5892167,111080.0,111070.0,0.47319908]
[1756835132388,0.5911967,111080.0,111070.0,0.13594246]
[1756835132598,0.5911967,111080.0,111070.0,0.29014246]
[1756835132795,0.5911967,111080.0,111070.0,0.24922599]
[1756835133010,0.5911967,111080.0,111070.0,0.09291599]
[1756835133224,1.00036299,111080.0,111070.0,0.1552]
[1756835133428,0.5911967,111080.0,111070.0,0.1552]
[1756835133654,1.00036299,111080.0,111070.0,0.1552]
[1756835133807,0.5911967,111080.0,111070.0,0.15731]
[1756835134021,0.5892167,111080.0,111070.0,0.34032662]
[1756835134445,0.5892167,111080.0,111070.0,0.16026]
[1756835134994,0.18005041,111080.0,111070.0,0.34032662]
[1756835135228,0.18180653,111080.0,111070.0,0.34032662]
[1756835135664,0.18180653,111080.0,111070.0,0.16026]
[1756835135965,0.18180653,111080.0,111070.0,0.34032662]
[1756835137101,0.18378653,111080.0,111070.0,0.15516]
[1756835137307,0.18005041,111080.0,111070.0,0.16022]
[1756835137542,0.18180653,111080.0,111070.0,0.20059297]
[1756835137747,0.18180653,111080.0,111070.0,0.38065959]
[1756835137953,0.18180653,111080.0,111070.0,0.47257558]
[1756835138163,0.00175612,111080.0,111070.0,0.88170934]
[1756835138373,0.18005041,111080.0,111070.0,0.47257558]
[1756835138557,0.18180653,111080.0,111070.0,0.47257558]
[1756835138893,0.18929924,111090.0,111070.0,0.47257558]
[1756835139062,0.18929924,111090.0,111080.0,0.06348]
[1756835139282,0.18929924,111090.0,111080.0,0.06882]
[1756835140174,0.19127924,111090.0,111080.0,0.22298]